fUSD/lending_fUSD_20251212
["ID","MTS","AMOUNT","RATE_DAILY","PERIOD"]
[398385704,1765569143726,-359.38816005,0.00017174,2]
[398385705,1765569143737,-142.04164179,0.00017174,2]
[398385706,1765569143748,-357.95835821,0.00017174,2]
[398385707,1765569143757,-1000.0,0.00017174,2]
[398385708,1765569143766,-642.04164179,0.00017174,2]
[398385710,1765569170526,-357.95835821,0.00017174,2]
[398385711,1765569170555,-1000.0,0.00017174,2]
[398385712,1765569170583,-1000.0,0.00017174,2]
[398385713,1765569170613,-1000.0,0.00017174,2]
[398385714,1765569170641,-500.0,0.00017174,2]
[398385715,1765569170670,-1000.0,0.00017174,2]
[398385716,1765569170699,-539.41401497,0.00017174,2]
[398385717,1765569170729,-1000.0,0.00017174,2]
[398385718,1765569170761,-161.45836022,0.00017174,2]
[398385719,1765569170789,-1000.0,0.00017174,2]
[398385720,1765569170817,-1000.0,0.00017174,2]
[398385721,1765569170845,-1000.0,0.00017174,2]
[398385722,1765569170873,-1000.0,0.00017174,2]
[398385723,1765569170901,-500.0,0.00017174,2]
[398385724,1765569170929,-620.0,0.00017174,2]
[398385725,1765569170957,-151.0,0.00017174,2]
[398385726,1765569170987,-151.0,0.00017174,2]
[398385727,1765569171014,-151.0,0.00017174,2]
[398385728,1765569171042,-236.3385332,0.00017174,2]
[398385729,1765569171059,-263.6614668,0.00017174,2]
[398385730,1765569171069,-94.29689141,0.00017174,2]
[398385731,1765569171080,-56.70310859,0.00017174,2]
[398385732,1765569171090,-500.0,0.00017174,2]
[398385733,1765569171099,-151.0,0.00017174,2]
[398385734,1765569171109,-292.29689141,0.00017174,2]
[398385735,1765569171124,-207.70310859,0.00017174,2]
[398385736,1765569171133,-151.0,0.00017174,2]
[398385737,1765569171142,-500.0,0.00017174,2]
[398385738,1765569171152,-141.29689141,0.00017174,2]
[398385739,1765569171169,-12.04625289,0.00017174,2]
[398385740,1765569171179,-500.0,0.00017174,2]
[398385741,1765569171189,-151.0,0.00017174,2]
[398385742,1765569171203,-336.95374711,0.00017174,2]
[398385743,1765569171214,-163.04625289,0.00017174,2]
[398385744,1765569171223,-336.95374711,0.00017174,2]
[398385745,1765569171239,-163.04625289,0.00017174,2]
[398385746,1765569171249,-151.0,0.00017174,2]
[398385747,1765569171258,-297.40114472,0.00017174,2]
[398385748,1765569171268,-388.55260239,0.00017174,2]
[398385749,1765569171292,-111.44739761,0.00017174,2]
[398385750,1765569171302,-151.0,0.00017174,2]
[398385751,1765569171312,-276.96661736,0.00017174,2]
[398385752,1765569171326,-223.03338264,0.00017174,2]
[398385753,1765569171336,-151.0,0.00017174,2]
[398385754,1765569171345,-500.0,0.00017174,2]
[398385755,1765569171355,-125.96661736,0.00017174,2]
[398385756,1765569171372,-35.26022437,0.00017174,2]
[398385757,1765569171381,-126.19813585,0.00017174,2]
[398385758,1765569171397,-381.51411946,0.00017174,2]
[398385759,1765569171406,-550.0,0.00017184,2]
[398385760,1765569171416,-68.48588054,0.00017184,2]
[398385761,1765569171428,-181.51411946,0.00017184,2]
[398385762,1765569171438,-818.48588054,0.00017185,2]
[398385763,1765569171453,-1000.0,0.00017185,2]
[398385764,1765569171468,-1000.0,0.00017185,2]
[398385765,1765569171484,-500.0,0.00017185,2]
[398385766,1765569171503,-620.0,0.00017185,2]
[398385767,1765569171517,-151.0,0.00017185,2]
[398385768,1765569171528,-151.0,0.00017185,2]
[398385769,1765569171546,-151.0,0.00017185,2]
[398385770,1765569171557,-500.0,0.00017185,2]
[398385776,1765569274649,159.12,8.372e-05,2]
[398385783,1765569478408,188.04,0.00013307,2]
[398385806,1765569982520,542.83,0.00024658,30]
[398385860,1765570231914,-281.0,0.00015648,2]
[398385862,1765570231924,-152.33736979,0.00015648,2]
[398385864,1765570231934,-1.95563963,0.00015649,2]
[398385866,1765570231945,-164.70436037,0.00015649,2]
[398385867,1765570231955,-166.66,0.00015978,2]
[398385869,1765570231964,-186.89,0.0001618,2]
[398385871,1765570231974,-166.66,0.00016307,2]
[398385873,1765570231983,-250.0,0.00016311,2]
[398385874,1765570231993,-193.33318159,0.00016537,2]
[398385876,1765570232002,-307.92,0.00016597,2]
[398385877,1765570232012,-166.66,0.00016637,2]
[398385878,1765570232022,-151.0,0.00016769,2]
[398385879,1765570232031,-300.0,0.00016769,2]
[398385880,1765570232041,-300.0,0.00016769,2]
[398385882,1765570232051,-1200.0,0.00016769,2]
[398385884,1765570232060,-234.36233064,0.0001677,2]
[398385887,1765570232070,-500.0,0.0001677,2]
[398385889,1765570232079,-500.0,0.0001677,2]
[398385891,1765570232091,-500.0,0.0001677,2]
[398385893,1765570232101,-440.38364621,0.0001677,2]
[398385895,1765570232111,-502.0,0.00016771,2]
[398385896,1765570232121,-2947.75972871,0.00016771,2]
[398385897,1765570232133,-3180.29027129,0.00016771,2]
[398385898,1765570232143,-5159.79,0.00016771,2]
[398385899,1765570232152,-9999.99,0.00016771,2]
[398385900,1765570232162,-9999.97,0.00016771,2]
[398385901,1765570232171,-13916.19,0.00016771,2]
[398385902,1765570232181,-2424.42,0.00016771,2]
[398385904,1765570232191,-3673.75,0.00016771,2]
[398385906,1765570232201,-421.68,0.00016771,2]
[398385908,1765570232211,-4999.99,0.00016771,2]
[398385910,1765570232222,-9999.99,0.00016771,2]
[398385912,1765570232231,-725.02,0.00016771,2]
[398385913,1765570232240,-9999.99,0.00016771,2]
[398385916,1765570232249,-8344.42,0.00016771,2]
[398385918,1765570232260,-1804.75,0.00016771,2]
[398385921,1765570232270,-1529.03,0.00016771,2]
[398385923,1765570232280,-1711.43,0.00016771,2]
[398385926,1765570232289,-152.33736979,0.00016772,2]
[398385929,1765570232299,-502.0,0.00016841,2]
[398385931,1765570232309,-1000.0,0.00016868,3]
[398385933,1765570232318,-502.0,0.0001687,2]
[398385935,1765570232328,-193.16218592,0.00016885,2]
[398385938,1765570232339,-500.0,0.00016902,2]
[398385941,1765570232356,-150.0,0.00016902,2]
[398385943,1765570232367,-215.48686071,0.00016902,2]
[398385945,1765570232378,-500.0,0.00016902,2]
[398385947,1765570232388,-355.1983025,0.00016929,2]
[398385948,1765570232399,-152.33736979,0.00016966,2]
[398385949,1765570232409,-166.66,0.00016966,2]
[398385950,1765570232419,-500.0,0.00016973,2]
[398385951,1765570232430,-500.0,0.00016973,2]
[398385952,1765570232439,-500.0,0.00016973,2]
[398385953,1765570232449,-502.0,0.00016977,2]
[398385954,1765570232459,-502.0,0.00017017,2]
[398385955,1765570232469,-500.0,0.00017033,2]
[398385956,1765570232478,-500.0,0.00017033,2]
[398385957,1765570232488,-500.0,0.00017033,2]
[398385958,1765570232498,-150.0,0.00017033,2]
[398385959,1765570232509,-500.0,0.00017039,2]
[398385960,1765570232518,-154.19787838,0.00017039,2]
[398385961,1765570232528,-500.0,0.00017039,2]
[398385962,1765570232538,-502.0,0.00017091,2]
[398385963,1765570232547,-500.0,0.00017151,2]
[398385964,1765570232557,-500.0,0.00017168,2]
[398385965,1765570232567,-500.0,0.00017168,2]
[398385966,1765570232582,-500.0,0.00017168,2]
[398385967,1765570232593,-500.0,0.00017168,2]
[398385968,1765570232603,-155.91961673,0.00017168,2]
[398385969,1765570232612,-250.0,0.00017168,2]
[398385970,1765570232622,-500.0,0.0001717,2]
[398385971,1765570232632,-500.0,0.0001717,2]
[398385972,1765570232642,-500.0,0.0001717,2]
[398385973,1765570232653,-150.0,0.0001717,2]
[398385974,1765570232663,-262.19455372,0.0001717,2]
[398385975,1765570232673,-500.0,0.00017176,2]
[398385976,1765570232684,-500.0,0.00017176,2]
[398385977,1765570232694,-5815.2749115,0.00017178,2]
[398385978,1765570232704,-399.8514725,0.00017178,2]
[398385979,1765570232713,-5233.0369708,0.00017178,2]
[398385980,1765570232723,-1383.5556929,0.00017178,2]
[398385981,1765570232733,-1000.0,0.00017184,2]
[398385982,1765570232743,-465.48038828,0.00017185,2]
[398385983,1765570232753,-166.2510569,0.00017185,2]
[398385984,1765570232763,-151.0,0.0001721,2]
[398385985,1765570232773,-183.35345476,0.00017213,2]
[398385986,1765570232783,-300.0,0.00017213,2]
[398385987,1765570232793,-250.0,0.00017213,2]
[398385988,1765570232803,-168.0,0.00017256,2]
[398385989,1765570232813,-168.0,0.00017277,2]
[398385990,1765570232823,-166.66,0.00017296,2]
[398385991,1765570232833,-500.0,0.00017307,2]
[398385992,1765570232845,-500.0,0.00017307,2]
[398385993,1765570232855,-500.0,0.00017307,2]
[398385994,1765570232864,-252.53330699,0.00017307,2]
[398385995,1765570232874,-500.0,0.00017313,2]
[398385996,1765570232883,-500.0,0.00017313,2]
[398385997,1765570232893,-17711.3775,0.00017344,2]
[398385998,1765570232903,-168.0,0.00017407,2]
[398385999,1765570232912,-168.0,0.00017423,2]
[398386000,1765570232921,-1000.0,0.00017429,2]
[398386001,1765570232931,-2500.0,0.00017429,2]
[398386002,1765570232940,-150.118,0.00017444,2]
[398386003,1765570232950,-184.079,0.00017444,2]
[398386004,1765570232962,-151.222,0.00017444,2]
[398386005,1765570232972,-150.245,0.00017444,2]
[398386006,1765570232981,-206.581,0.00017444,2]
[398386007,1765570232991,-273.368,0.00017444,2]
[398386008,1765570233001,-150.0,0.00017444,2]
[398386009,1765570233010,-151.966,0.00017444,2]
[398386010,1765570233020,-151.0,0.00017444,2]
[398386011,1765570233029,-1322.0,0.00017444,2]
[398386012,1765570233040,-3449.0,0.00017444,2]
[398386013,1765570233049,-611.0,0.00017444,2]
[398386014,1765570233063,-1606.0,0.00017444,2]
[398386015,1765570233074,-642.0,0.00017444,2]
[398386016,1765570233085,-1260.0,0.00017444,2]
[398386017,1765570233095,-1196.0,0.00017444,2]
[398386018,1765570233423,-910.0,0.00017444,2]
[398386019,1765570233434,-6519.0,0.00017444,2]
[398386020,1765570233444,-4795.0,0.00017444,2]
[398386021,1765570233454,-1306.0,0.00017444,2]
[398386022,1765570233464,-500.0,0.00017444,2]
[398386023,1765570233474,-500.0,0.00017444,2]
[398386024,1765570233484,-500.0,0.00017444,2]
[398386025,1765570233494,-500.0,0.0001745,2]
[398386026,1765570233503,-500.0,0.0001745,2]
[398386027,1765570233513,-719.439718,0.00017468,2]
[398386028,1765570233522,-719.439718,0.00017468,2]
[398386029,1765570233532,-719.439718,0.00017468,2]
[398386030,1765570233541,-719.439718,0.00017468,2]
[398386031,1765570233551,-1000.0,0.00017521,2]
[398386032,1765570233561,-1000.0,0.00017521,2]
[398386033,1765570233573,-1000.0,0.00017521,2]
[398386034,1765570233584,-151.0,0.00017529,2]
[398386035,1765570233595,-151.0,0.00017529,2]
[398386036,1765570233606,-3982.5893565,0.00017565,2]
[398386037,1765570233616,-151.0,0.00017565,2]
[398386038,1765570233628,-257.574381,0.00017565,2]
[398386039,1765570233638,-151.0,0.00017565,2]
[398386040,1765570233649,-153.199289,0.00017565,2]
[398386041,1765570233659,-153.199289,0.00017565,2]
[398386042,1765570233669,-153.199289,0.00017565,2]
[398386043,1765570233686,-153.199289,0.00017565,2]
[398386044,1765570233700,-151.0,0.00017565,2]
[398386045,1765570233711,-151.0,0.00017565,2]
[398386046,1765570233721,-1416.574,0.0001758,2]
[398386047,1765570233732,-500.0,0.00017581,2]
[398386048,1765570233742,-500.0,0.00017581,2]
[398386049,1765570233753,-540.61238443,0.00017581,2]
[398386050,1765570233763,-500.0,0.00017587,2]
[398386051,1765570233773,-1341.11522186,0.0001764,2]
[398386052,1765570233784,-719.439718,0.00017715,2]
[398386053,1765570233795,-719.439718,0.00017715,2]
[398386054,1765570233805,-719.439718,0.00017715,2]
[398386055,1765570233816,-719.439718,0.00017715,2]
[398386056,1765570233826,-500.0,0.00017718,2]
[398386057,1765570233837,-500.0,0.00017718,2]
[398386058,1765570233848,-500.0,0.00017724,2]
[398386059,1765570233858,-1000.0,0.000178,2]
[398386060,1765570233869,-500.0,0.00017808,2]
[398386061,1765570233879,-320.0,0.0001782,2]
[398386062,1765570233889,-492.97672049,0.00017833,2]
[398386063,1765570233899,-500.0,0.00017833,2]
[398386064,1765570233910,-500.0,0.00017833,2]
[398386065,1765570233920,-151.0,0.00017838,2]
[398386066,1765570233930,-500.0,0.00017855,2]
[398386067,1765570233940,-500.0,0.00017855,2]
[398386068,1765570233950,-500.0,0.00017861,2]
[398386069,1765570233960,-320.0,0.00017879,2]
[398386070,1765570233970,-320.0,0.00017889,2]
[398386071,1765570233980,-2851.86828604,0.00017894,3]
[398386072,1765570233989,-500.0,0.00017899,2]
[398386073,1765570233999,-719.439718,0.000179,2]
[398386074,1765570234009,-719.439718,0.000179,2]
[398386075,1765570234019,-719.439718,0.000179,2]
[398386076,1765570234030,-719.439718,0.000179,2]
[398386077,1765570234045,-151.0,0.000179,2]
[398386078,1765570234056,-153.199289,0.000179,2]
[398386079,1765570234067,-153.199289,0.000179,2]
[398386080,1765570234077,-153.199289,0.000179,2]
[398386081,1765570234088,-153.199289,0.000179,2]
[398386082,1765570234103,-22772.73512992,0.000179,2]
[398386083,1765570234121,-46318.24968026,0.000179,2]
[398386084,1765570234131,-151.0,0.000179,2]
[398386085,1765570234142,-151.0,0.000179,2]
[398386086,1765570234152,-151.0,0.000179,2]
[398386087,1765570234164,-256.564932,0.000179,2]
[398386088,1765570234174,-151.0,0.000179,2]
[398386089,1765570234184,-200.0,0.00017937,2]
[398386090,1765570234195,-500.0,0.00017945,2]
[398386091,1765570234205,-500.0,0.00017973,2]
[398386092,1765570234216,-600.69724718,0.00017973,2]
[398386093,1765570234227,-332.62034937,0.00017973,2]
[398386094,1765570234241,-500.0,0.00017973,2]
[398386095,1765570234252,-544.42752428,0.00017973,2]
[398386096,1765570234262,-500.0,0.00017973,2]
[398386097,1765570234272,-256.0,0.00017992,2]
[398386098,1765570234283,-500.0,0.00017992,2]
[398386099,1765570234293,-500.0,0.00017998,2]
[398386100,1765570234303,-189.75866884,0.00017999,2]
[398386101,1765570234314,-158.43,0.00017999,2]
[398386102,1765570234324,-374.43819562,0.00018,2]
[398386103,1765570234373,-1684.56180438,0.00018,2]
[398386104,1765570234383,-150.0,0.00018,2]
[398386105,1765570234394,-14236.14889541,0.00018,2]
[398386106,1765570234407,-30644.07006335,0.00018,2]
[398386107,1765570234476,-77210.66043892,0.00018,2]
[398386108,1765570234509,-1490.50948365,0.00018,2]
[398386109,1765570234522,-2303.22682107,0.00018,2]
[398386110,1765570234534,-1323.05998382,0.00018,2]
[398386111,1765570234546,-2850.15,0.00018,2]
[398386116,1765570238131,-446.48391257,0.000179,2]
[398386117,1765570238142,-403.91398327,0.000179,2]
[398386118,1765570238180,-3033.37589572,0.000179,2]
[398386119,1765570238191,-232.74019414,0.000179,2]
[398386120,1765570238200,-1007.8505202,0.00018,2]
[398386121,1765570238211,-891.07236726,0.00018,2]
[398386122,1765570238235,-4754.74062376,0.00018,2]
[398386123,1765570238246,-1265.66792486,0.00018,2]
[398386124,1765570238258,-15228.148,0.00018,2]
[398386125,1765570238289,-711.441254,0.00018,2]
[398386126,1765570238300,-593.02810869,0.00018,2]
[398386287,1765570240034,-1495.78179057,0.00018,2]
[398386289,1765570240045,-777.12919889,0.00018,2]
[398386291,1765570240057,-373838.95593096,0.00018,2]
[398386293,1765570240069,-1736.87453986,0.00018,2]
[398386296,1765570240086,-1119.83882024,0.00018,2]
[398386303,1765570240141,-4024.0199998,0.00018,2]
[398386315,1765570240247,-90362.063629,0.00018,2]
[398386317,1765570240258,-865.13590181,0.00018,2]
[398386319,1765570240458,-633.75751872,0.00018,2]
[398386571,1765570243035,-338.55,0.00017444,2]
[398386572,1765570243044,-932.89217048,0.00017444,2]
[398386573,1765570243055,-1496.47882952,0.00017444,2]
[398386574,1765570243064,-31921.2850852,0.00018,2]
[398386575,1765570243075,-359.63511905,0.00018,2]
[398386576,1765570243095,-378.87943479,0.00018,2]
[398386577,1765570243118,-3638.69306652,0.00018,2]
[398386578,1765570243150,-14032.98514283,0.00018,2]
[398386579,1765570243161,-11455.88315591,0.00018,2]
[398386580,1765570243257,-872.26117996,0.00018,2]
[398386586,1765570246042,-912.15864265,0.00018,2]
[398386587,1765570246097,-2345.1357987,0.00018,2]
[398386588,1765570246155,-1941.25500391,0.00018,2]
[398386589,1765570246167,-2196.92682387,0.00018,2]
[398386590,1765570246177,-12485.39301366,0.00018,2]
[398386591,1765570246189,-4377.62457762,0.00018,2]
[398386592,1765570246200,-4562.6521762,0.00018,2]
[398386593,1765570246212,-1236.613284,0.00018,2]
[398386594,1765570246223,-5911.61489766,0.00018,2]
[398386595,1765570246235,-456.93,0.00018,2]
[398386596,1765570246246,-387.5,0.00018,2]
[398386597,1765570246258,-3821.09259322,0.00018,2]
[398386598,1765570246269,-2038.77999999,0.00018,2]
[398386647,1765570338833,416.63,0.00013699,2]
[398386682,1765571125475,1023.4680631,0.000108,2]
[398386683,1765571154725,792.97354047,0.000129,2]
[398386986,1765571432144,-1133.259,0.00016338,2]
[398386987,1765571432154,-287.0,0.00016338,2]
[398386988,1765571432163,-193.0,0.00016369,2]
[398386989,1765571432173,-1200.0,0.00016399,2]
[398386990,1765571432182,-300.0,0.00016399,2]
[398386991,1765571432191,-9234.80766765,0.000164,2]
[398386992,1765571432201,-999.0,0.0001654,3]
[398386993,1765571432210,-235.6589,0.00016572,2]
[398386994,1765571432220,-281.3187,0.00016572,2]
[398386995,1765571432231,-2807.11342368,0.00016572,2]
[398386996,1765571432241,-1023.16132915,0.00016572,2]
[398386997,1765571432255,-705.91581881,0.00016572,2]
[398386998,1765571432266,-265.84703492,0.00016572,2]
[398386999,1765571432276,-5233.02264453,0.00016572,2]
[398387000,1765571432286,-652.30130565,0.00016572,2]
[398387001,1765571432297,-3673.29706504,0.00016572,2]
[398387003,1765571432336,-380.79749567,0.00016572,2]
[398387004,1765571432347,-835.60817854,0.00016572,2]
[398387005,1765571432358,-500.0,0.00016572,2]
[398387006,1765571432369,-533.34640399,0.00016572,2]
[398387007,1765571432380,-541.02384741,0.00016572,2]
[398387010,1765571432398,-338.87,0.00016572,2]
[398387013,1765571432411,-1775.89247854,0.00016572,2]
[398387015,1765571432422,-977.19910769,0.00016572,2]
[398387019,1765571438341,-215.59818291,0.00016571,2]
[398387020,1765571438351,-6811.85070306,0.00016572,2]
[398387030,1765571440225,-449.495,0.00016572,2]
[398387031,1765571440237,-1303.61305333,0.00016572,2]
[398387032,1765571440388,-267.24135918,0.00016572,2]
[398387033,1765571440400,-393.75864082,0.00016572,2]
[398387041,1765571443230,-529.68414465,0.00016572,2]
[398387043,1765571443286,-3891.73401945,0.00016572,2]
[398387044,1765571443342,-502626.79492257,0.00016572,2]
[398387045,1765571443452,-1016.61257202,0.00016572,2]
[398387046,1765571443508,-2312.3092513,0.00016572,2]
[398387047,1765571443519,-4861.54029789,0.0001663,2]
[398387048,1765571443531,-2988.43298632,0.0001663,2]
[398387049,1765571443540,-500.0,0.00016646,2]
[398387050,1765571443549,-202.65042616,0.0001667,2]
[398387051,1765571443559,-1000.0,0.0001673,2]
[398387052,1765571443568,-169.94,0.00016741,2]
[398387053,1765571443577,-1631.29,0.00016741,2]
[398387054,1765571443586,-499.99,0.00016741,2]
[398387055,1765571443596,-18350.34,0.00016741,2]
[398387056,1765571443605,-6328.98128503,0.00016741,2]
[398387057,1765571443621,-2379.12870126,0.00016741,2]
[398387096,1765572083791,302.26,8.235e-05,2]
[398387097,1765572083996,302.26,8.668e-05,2]
[398387098,1765572084213,302.26,9.102e-05,2]
[398387099,1765572084451,302.26,9.535e-05,2]
[398387100,1765572084711,302.26,9.969e-05,2]
[398387101,1765572084916,302.26,0.00010402,2]
[398387102,1765572085149,302.26,0.00010835,2]
[398387103,1765572085349,302.26,0.00011269,2]
[398387104,1765572085621,302.26,0.00011702,2]
[398387105,1765572085775,302.26,0.00012136,2]
[398387106,1765572085987,302.26,0.00012569,2]
[398387107,1765572086190,302.26,0.00013003,2]
[398387108,1765572086388,302.26,0.00013436,2]
[398387109,1765572086593,302.26,0.00013869,2]
[398387110,1765572086784,302.26,0.00014303,2]
[398387111,1765572086980,302.26,0.00014736,2]
[398387112,1765572087488,302.26,0.0001517,2]
[398387151,1765572632335,-302.26,0.00015603,2]
[398387152,1765572632347,-250.0,0.00015879,2]
[398387153,1765572632357,-302.26,0.00016036,2]
[398387154,1765572632368,-906.608,0.0001624,2]
[398387155,1765572632380,-2872.0,0.00016438,2]
[398387156,1765572632390,-302.26,0.0001647,2]
[398387157,1765572632400,-300.0,0.00016471,2]
[398387158,1765572632410,-1200.0,0.00016471,2]
[398387159,1765572632419,-8500.3634,0.00016472,2]
[398387160,1765572632429,-4736.69,0.00016505,2]
[398387161,1765572632438,-150.0,0.00016521,2]
[398387162,1765572632447,-1000.0,0.00016539,3]
[398387163,1765572632459,-1193.1,0.00016563,2]
[398387164,1765572632468,-7272.03,0.00016563,2]
[398387165,1765572632478,-150.99,0.00016563,2]
[398387166,1765572632487,-9999.99,0.00016563,2]
[398387167,1765572632496,-5424.2,0.00016563,2]
[398387168,1765572632506,-999.99,0.00016563,2]
[398387169,1765572632516,-9999.99,0.00016563,2]
[398387170,1765572632525,-410.0,0.00016593,2]
[398387171,1765572632534,-1428.1859467,0.00016594,2]
[398387172,1765572632544,-14243.0535462,0.00016594,2]
[398387173,1765572632553,-492.0,0.00016626,2]
[398387174,1765572632563,-157.0,0.0001663,2]
[398387175,1765572632572,-381.0,0.00016641,2]
[398387177,1765572632581,-247.0,0.00016663,2]
[398387180,1765572632590,-200.0,0.00016664,2]
[398387183,1765572632599,-162.0,0.00016697,2]
[398387185,1765572632608,-216.0,0.0001673,2]
[398387187,1765572632617,-1000.0,0.0001674,2]
[398387189,1765572632626,-1600.0,0.00016771,2]
[398387191,1765572632635,-259.90349082,0.0001684,2]
[398387194,1765572632644,-311.1,0.00016845,2]
[398387197,1765572632654,-595.37131296,0.00016845,2]
[398387199,1765572632664,-198.0,0.00016866,2]
[398387201,1765572632673,-385.0,0.00016899,2]
[398387203,1765572632683,-500.0,0.00016973,2]
[398387205,1765572632691,-500.0,0.00016973,2]
[398387207,1765572632700,-500.0,0.00016973,2]
[398387208,1765572632710,-172.57729534,0.00016973,2]
[398387210,1765572632719,-500.0,0.00016973,2]
[398387212,1765572632728,-163.54190034,0.00016973,2]
[398387214,1765572632737,-500.0,0.00016973,2]
[398387216,1765572632747,-500.0,0.00016973,2]
[398387218,1765572632756,-500.0,0.00016973,2]
[398387220,1765572632765,-165.12855404,0.00016973,2]
[398387222,1765572632775,-500.0,0.00016973,2]
[398387225,1765572632784,-216.02173423,0.00016973,2]
[398387226,1765572632793,-500.0,0.00016973,2]
[398387229,1765572632803,-160.04384021,0.00016973,2]
[398387231,1765572632813,-500.22194428,0.00016973,2]
[398387233,1765572632822,-593.94149051,0.00016973,2]
[398387235,1765572632831,-500.51061905,0.00016973,2]
[398387237,1765572632840,-500.0,0.00016973,2]
[398387238,1765572632850,-500.0,0.00016973,2]
[398387240,1765572632859,-500.0,0.00016973,2]
[398387241,1765572632868,-500.0,0.00016973,2]
[398387242,1765572632878,-500.0,0.00016973,2]
[398387243,1765572632887,-500.0,0.00016973,2]
[398387244,1765572632896,-500.0,0.00016973,2]
[398387245,1765572632906,-500.0,0.00016973,2]
[398387246,1765572632915,-500.0,0.00016973,2]
[398387247,1765572632924,-500.0,0.00016973,2]
[398387248,1765572632933,-162.68857572,0.00016973,2]
[398387249,1765572632942,-160.0,0.00017,2]
[398387250,1765572632953,-500.0,0.00017014,2]
[398387251,1765572632962,-233.75,0.00017027,2]
[398387252,1765572632971,-391.91918339,0.00017163,2]
[398387253,1765572632982,-250.0,0.00017163,2]
[398387254,1765572632992,-300.0,0.00017163,2]
[398387255,1765572633001,-300.0,0.00017163,2]
[398387256,1765572633010,-300.0,0.00017163,2]
[398387257,1765572633020,-256.73367945,0.00017163,2]
[398387258,1765572633030,-193.0,0.00017163,2]
[398387259,1765572633039,-195.0,0.00017163,2]
[398387260,1765572633049,-7064.97595571,0.00017275,2]
[398387261,1765572633058,-1063.61,0.00017409,2]
[398387262,1765572633067,-7064.97595571,0.00017431,2]
[398387263,1765572633076,-163.04292415,0.00017461,2]
[398387264,1765572633087,-198.59573842,0.00017461,2]
[398387265,1765572633096,-189.20323766,0.00017461,2]
[398387266,1765572633105,-1606.0,0.00017462,2]
[398387267,1765572633115,-617.068,0.00017462,2]
[398387268,1765572633124,-3449.0,0.00017462,2]
[398387269,1765572633133,-1324.0,0.00017462,2]
[398387270,1765572633143,-1260.9,0.00017462,2]
[398387271,1765572633152,-661.81,0.00017462,2]
[398387272,1765572633162,-150.0,0.00017462,2]
[398387273,1765572633171,-6519.0,0.00017462,2]
[398387274,1765572633181,-150.0,0.00017462,2]
[398387275,1765572633190,-151.0,0.00017462,2]
[398387276,1765572633200,-563.0,0.00017462,2]
[398387277,1765572633211,-8715.61707547,0.0001752,2]
[398387278,1765572633221,-1000.0,0.00017521,2]
[398387279,1765572633231,-500.0,0.00017521,2]
[398387280,1765572633240,-999.999999,0.00017521,2]
[398387281,1765572633249,-1000.0,0.00017521,2]
[398387282,1765572633259,-500.0,0.00017521,2]
[398387283,1765572633268,-1000.0,0.00017521,2]
[398387284,1765572633277,-1000.0,0.00017521,2]
[398387285,1765572633287,-500.0,0.00017521,2]
[398387286,1765572633297,-1000.0,0.00017521,2]
[398387287,1765572633311,-1000.0,0.00017521,2]
[398387288,1765572633321,-1000.0,0.00017521,2]
[398387289,1765572633330,-528.93179241,0.00017521,2]
[398387290,1765572633340,-1000.0,0.00017521,2]
[398387291,1765572633350,-7064.97595571,0.00017588,2]
[398387292,1765572633359,-168.0,0.00017626,2]
[398387293,1765572633368,-894.07681458,0.0001764,2]
[398387294,1765572633379,-168.0,0.00017661,2]